Cogmind - Beta 11.1 @@@ ROGUE MODE // 2022.06.09 @ 12:16:25 Player: ILikeGoodFood Result: Destroyed by H-55 Commando with Assault Rifle Performance ------------- Evolutions (3) 1500 Regions Visited (6) 1200 Robots Destroyed (47) 235 Value Destroyed (1178) 1178 Prototype IDs (27) 540 Alien Tech Used (0) 0 Bonus (300) 300 TOTAL SCORE: 4953 Bonus ------- Aligned with FarCom 300 Cogmind --------- Core Integrity 0/700 Matter 117/300 Energy 120/150 System Corruption 3% Temperature Cool (0) Movement Rolling (100) Location -7/Factory Parts ------- > --- POWER (2) -------- Micro Nuclear Core > --- PROPULSION (4) --- Armored Huge Wheel > --- UTILITY (5) ------ Core Analyzer > --- WEAPON (2) ------- Remote Datajack > --- INVENTORY (5) ---- Cloak of Protection Peak State ------------ > --- POWER ------------ Light Nuclear Core > --- PROPULSION ------- Armored Huge Wheel Armored Huge Wheel > --- UTILITY ---------- Thermal Generator Core Analyzer Hacking Suite Hacking Suite System Shield > --- WEAPON ----------- Enhanced Autogun Enhanced Autogun > --- INVENTORY -------- Micro Nuclear Core Armored Huge Wheel Cloak of Protection Remote Datajack [Rating: 45] Favorites ----------- Power Light Nuclear Core Engine Light Ion Engine Power Core Light Nuclear Core Propulsion Flight Unit Treads Light Treads Leg Improved Titanium Leg Wheel Armored Huge Wheel Flight Unit Flight Unit Utility Hacking Suite Device Weight Redist. System Processor Visual Processing Unit Hackware Hacking Suite Protection Hardened Medium Armor Plating Weapon Enhanced Autogun Energy Gun Medium Laser Ballistic Gun Enhanced Autogun Special Weapon Remote Datajack Special Melee Weapon Improved Datajack Build | -11 -10 -10 -10 -9 -8 -7 ------- Run | Scr Mat Min Exi Min Mat Fac Slots Evolved 6 | . . . . . 4 2 Power 1 | . . . . . 1 . Propulsion 2 | . . . . . 2 . Utility 3 | . . . . . 1 2 Weapon . | . . . . . . . Parts Attached 66 | 5 10 1 . 5 19 26 Power 17 | 1 2 . . 2 6 6 Engine 11 | 1 2 . . 2 4 2 Core 6 | . . . . . 2 4 Reactor . | . . . . . . . Propulsion 16 | 2 2 1 . 2 3 6 Treads 1 | . . . . . 1 . Leg 1 | . . . . . . 1 Wheel 7 | 2 . . . . . 5 Hover . | . . . . . . . Flight 7 | . 2 1 . 2 2 . Utility 19 | . 4 . . 1 4 10 Device 9 | . 3 . . 1 2 3 Storage . | . . . . . . . Processor 5 | . 1 . . . . 4 Hackware 4 | . . . . . 1 3 Protection 1 | . . . . . 1 . Artifact . | . . . . . . . Weapon 14 | 2 2 . . . 6 4 Energy Gun 5 | 1 1 . . . 2 1 Energy Cannon . | . . . . . . . Ballistic Gun 7 | 1 1 . . . 4 1 Ballistic Cannon . | . . . . . . . Launcher . | . . . . . . . Special Weapon 1 | . . . . . . 1 Impact Weapon . | . . . . . . . Slashing Weapon . | . . . . . . . Piercing Weapon . | . . . . . . . Special Melee Weapon 1 | . . . . . . 1 Unidentified Prototypes 4 | . . . . . 4 . Parts Lost 16 | . . . . 2 6 8 Power 4 | . . . . . 2 2 Propulsion 6 | . . . . 1 3 2 Utility 5 | . . . . 1 1 3 Weapon 1 | . . . . . . 1 Highest Loss Streak 7 | . . . . 1 5 7 To Critical Strikes . | . . . . . . . Average Slot Usage (%) 77 | . 93 100 100 87 67 69 Engine 5 | . 14 14 14 14 4 . Core 3 | . . . . . 5 6 Wheel 4 | . 16 . . . . 5 Flight 11 | . 5 28 28 26 12 3 Device 11 | . 17 14 14 3 16 7 Processor 8 | . 10 14 14 14 9 5 Hackware 10 | . . . . . . 23 Energy Gun 6 | . 14 14 14 14 4 . Ballistic Gun 13 | . 14 14 14 14 12 12 Naked Turns . | . . . . . . . Heaviest Build 19 | 8 10 7 7 7 19 18 Greatest Support 56 | 20 20 8 8 8 26 56 Greatest Overweight (x) 3 | . 1 . . 1 3 1 Average Overweight (x) . | . . . . . . . Largest Inventory Capacity 5 | 5 5 5 5 5 5 5 Average Capacity 5 | 5 5 5 5 5 5 5 Most Carried 5 | 5 5 5 5 5 5 5 Average Carried 4 | 1 4 4 4 4 4 4 Final Capacity 5 | 5 5 5 5 5 5 5 Final Carried 5 | 3 5 5 5 5 4 1 Class Distribution -------------------- 44% | Scavenger-Mutant 38% | Hacker-Mutant 15% | Mutant Dominant Class ---------------- Mutant | -10/Materials Scavenger-Mutant | -10/Mines Scavenger-Mutant | -10/Exiles Scavenger-Mutant | -9/Mines Scavenger-Mutant | -8/Materials Hacker-Mutant | -7/Factory Resources | -11 -10 -10 -10 -9 -8 -7 ----------- Run | Scr Mat Min Exi Min Mat Fac Matter Collected 1076 | 231 111 41 . 57 238 398 Remotely 18 | . 18 . . . . . Salvage Created 1620 | 153 158 . . 94 547 668 Parts 95 | 14 15 . . 7 34 25 Haulers Intercepted 2 | . 1 . . . 1 . Recyclers Shooed 2 | 2 . . . . . . Parts Field Recycled . | . . . . . . . Retrieved Matter . | . . . . . . . Parts Self-Destructed . | . . . . . . . Prevented . | . . . . . . . Kills | -11 -10 -10 -10 -9 -8 -7 ------- Run | Scr Mat Min Exi Min Mat Fac Combat Hostiles Destroyed 33 | . 6 1 . 7 9 10 Guns 31 | . 6 1 . 7 9 8 AOE 2 | . . . . . . 2 Classes Destroyed 11 | 2 3 1 . . 3 2 Builder 2 | . . . . . 2 . Tunneler 4 | 4 . . . . . . Hauler 2 | . 1 . . . 1 . Recycler 3 | 1 . . . . . 2 Operator 1 | . . . . . . 1 Watcher 3 | . 1 . . . 1 1 Swarmer 16 | . 6 . . 7 . 3 Grunt 13 | . . . . . 7 6 Sentry 2 | . . . . . 2 . Programmer 1 | . . . . . . 1 Assembled 1 | . . 1 . . . . Best Kill Streak 5 | 5 3 1 . 4 5 4 Combat Bots Only 5 | . 3 1 . 4 5 3 Max Kills in Single Turn 2 | 1 1 1 . 2 1 2 Gunslinging 1 | . . . . 1 . . Exploded 2 | . . . . . . 2 Melee . | . . . . . . . Uniques/NPCs Destroyed . | . . . . . . . Combat | -11 -10 -10 -10 -9 -8 -7 -------- Run | Scr Mat Min Exi Min Mat Fac Damage Taken 3144 | . 184 32 . 198 726 2004 Core 965 | . 52 . . 30 172 711 Absorbed by Shields . | . . . . . . . Regen/Repaired (Parts) 159 | . 27 . . . . 132 Core Remaining (%) 78 | 100 . . . 67 68 . Volleys Fired 158 | 13 18 3 . 14 60 50 Largest 2 | 2 2 2 . 2 2 2 Hottest 88 | 70 70 70 . 70 88 50 Shots Fired 314 | 26 36 6 . 28 119 99 Gun 314 | 26 36 6 . 28 119 99 Cannon . | . . . . . . . Launcher . | . . . . . . . Special . | . . . . . . . Kinetic 208 | 13 18 3 . 14 61 99 Thermal 106 | 13 18 3 . 14 58 . Explosive . | . . . . . . . Electromagnetic . | . . . . . . . Robot Hit Streak 26 | 7 3 3 . 6 26 6 Robot Miss Streak 8 | 2 3 1 . 4 3 8 Penetration Max . | . . . . . . . Secondary Targets 7 | . 1 . . 2 2 2 Max Gunslinging Chain 1 | . 1 . . 1 1 1 Shots Hit Robots 187 | 18 17 4 . 15 79 54 Core Hits 95 | 8 11 1 . 8 35 32 Critical Kills . | . . . . . . . Critical Parts Destroyed . | . . . . . . . Critical Strikes 6 | . 2 . . 2 2 . Burn 6 | . 2 . . 2 2 . Melee Attacks 2 | . . . . . . 2 Impact . | . . . . . . . Slashing . | . . . . . . . Piercing . | . . . . . . . Sneak Attacks 2 | . . . . . . 2 Combat Hostiles . | . . . . . . . Follow-up Attacks . | . . . . . . . Damage Inflicted 3008 | 199 215 40 . 156 1065 1333 Guns 2664 | 199 215 40 . 156 1065 989 Cannons . | . . . . . . . Explosions 279 | . . . . . . 279 Melee . | . . . . . . . Ramming 65 | . . . . . . 65 Kinetic 1729 | 74 76 27 . 69 494 989 Thermal 935 | 125 139 13 . 87 571 . Explosive . | . . . . . . . Electromagnetic 279 | . . . . . . 279 Impact . | . . . . . . . Slashing . | . . . . . . . Piercing . | . . . . . . . Highest Corruption 3 | . . . . . . 3 Average Corruption 2 | . . . . . . 2 Corruption Purged . | . . . . . . . Corruption Blocked . | . . . . . . . Effects 13 | . . . . . . 13 Message Errors 2 | . . . . . . 2 Matter Fused 2 | . . . . . . 2 Heat Flow Errors 1 | . . . . . . 1 Data Loss (minor) 4 | . . . . . . 4 Data Loss (major) 3 | . . . . . . 3 Misfires 1 | . . . . . . 1 Overload Shots . | . . . . . . . Overflow Damage . | . . . . . . . Projectiles . | . . . . . . . Explosions . | . . . . . . . Melee . | . . . . . . . Knockbacks . | . . . . . . . Impact . | . . . . . . . Kinetic . | . . . . . . . Secondary . | . . . . . . . Self-Inflicted Damage 47 | . . . . . . 47 Shots 1 | . . . . . . 1 Rammed 32 | . . . . . . 32 Targets Rammed 32 | . . . . . . 32 Kicked . | . . . . . . . Crushed . | . . . . . . . Highest Temperature 336 | 60 100 79 . 132 336 186 Average Temperature 61 | 24 36 39 . 67 100 27 Received Heat Transfer 1011 | . . 27 . . 369 615 Effects 1 | . . . . . 1 . Interference 1 | . . . . . 1 . Siege Activations . | . . . . . . . Robots Corrupted . | . . . . . . . Combat Hostiles . | . . . . . . . Parts Fried . | . . . . . . . Impact Corruptions . | . . . . . . . Robots Melted . | . . . . . . . Combat Hostiles . | . . . . . . . Parts Melted 7 | 1 . . . 1 5 . Heat Transferred 2923 | 370 555 37 . 407 1554 . Parts Sabotaged . | . . . . . . . Parts Stolen . | . . . . . . . Parts Stripped . | . . . . . . . Power Chain Reactions . | . . . . . . . Missiles Intercepted . | . . . . . . . Alert | -11 -10 -10 -10 -9 -8 -7 ------- Run | Scr Mat Min Exi Min Mat Fac Peak Influence 262 | 25 230 89 . 150 262 180 Initial 89 | . 16 89 . . 58 20 Average 87 | 10 105 89 . 62 107 81 Maximum Alert Level 1 | . 1 . . . 1 . Low Security (%) 94 | 100 88 100 . 100 82 100 Level 1 5 | . 11 . . . 17 . Level 2 . | . . . . . . . Level 3 . | . . . . . . . Level 4 . | . . . . . . . Level 5 . | . . . . . . . High Security . | . . . . . . . Max Security . | . . . . . . . Squads Dispatched 15 | . . . . . 4 11 Investigation 5 | . . . . . 2 3 Extermination 1 | . . . . . . 1 Reinforcement 8 | . . . . . 2 6 Assault 1 | . . . . . . 1 Garrison . | . . . . . . . Intercept . | . . . . . . . Searches Triggered . | . . . . . . . Construction Impeded 1 | . . . . . . 1 Haulers Reinforced 1 | . . . . . . 1 Active Scanning Responses . | . . . . . . . Cargo Convoy Interrupts . | . . . . . . . Stealth | -11 -10 -10 -10 -9 -8 -7 --------- Run | Scr Mat Min Exi Min Mat Fac Distress Signals 4 | . . . . . 3 1 Communications Jammed . | . . . . . . . Distress Signals . | . . . . . . . Times Spotted 77 | . 12 9 . 7 18 31 Peak Tracking Total 15 | . 3 15 . 4 6 11 Tactical Retreats 7 | . 1 1 . . 4 1 Traps | -11 -10 -10 -10 -9 -8 -7 ------- Run | Scr Mat Min Exi Min Mat Fac Traps Triggered 3 | . . . . . 1 2 Indirectly 1 | . . . . . . 1 Trap Hack Attempts . | . . . . . . . Triggered . | . . . . . . . Disarmed . | . . . . . . . Reprogrammed . | . . . . . . . Reused 1 | . . . . 1 . . Traps Extracted . | . . . . . . . Installed 1 | . . . . 1 . . Triggered 1 | . . . . 1 . . Most Traps Carried 1 | . . 1 1 1 . . Machines | -11 -10 -10 -10 -9 -8 -7 ---------- Run | Scr Mat Min Exi Min Mat Fac Machines Disabled 5 | . . . . . . 5 Max in Single Turn 3 | . . . . . . 3 Garrison Access 1 | . . . . . . 1 Machines Sabotaged . | . . . . . . . Garrisons Compromised . | . . . . . . . Overloaded Fab Kills . | . . . . . . . Hacking | -11 -10 -10 -10 -9 -8 -7 --------- Run | Scr Mat Min Exi Min Mat Fac Machines Accessed 20 | . 3 . 4 . 4 9 Terminals 10 | . 2 . . . 4 4 Fabricators 2 | . . . . . . 2 Repair Stations 3 | . 1 . . . . 2 Recycling Units . | . . . . . . . Scanalyzers 1 | . . . . . . 1 Garrison Access . | . . . . . . . Total Hacks 80 | . 8 . 41 . 9 22 Successful 61 | . 2 . 41 . 3 15 Failed 19 | . 6 . . . 6 7 Catastrophic 3 | . . . . . 1 2 Database Lockouts . | . . . . . . . Manual 1 | . . . 1 . . . Terminals 22 | . 6 . . . 9 7 Fabricators 4 | . . . . . . 4 Repair Stations 9 | . 2 . . . . 7 Recycling Units . | . . . . . . . Scanalyzers 4 | . . . . . . 4 Garrison Access . | . . . . . . . Terminal Hacks 47 | . . . 41 . 3 3 Record 42 | . . . 40 . 1 1 Open DSF 1 | . . . . . . 1 Emergency Access Points 1 | . . . . . . 1 Unreport Threat 1 | . . . . . 1 . Reinforcement Status 1 | . . . . . 1 . EX-Prototype ID Bank 1 | . . . 1 . . . Fabricator Hacks 3 | . . . . . . 3 Network Status 1 | . . . . . . 1 Load Schematic 1 | . . . . . . 1 Build 1 | . . . . . . 1 Repair Station Hacks 8 | . 2 . . . . 6 Scan Component 4 | . 1 . . . . 3 Repair 4 | . 1 . . . . 3 Recycling Unit Hacks . | . . . . . . . Scanalyzer 3 | . . . . . . 3 Insert Component 2 | . . . . . . 2 Analyze 1 | . . . . . . 1 Garrison Access Hacks . | . . . . . . . Unauthorized Hacks . | . . . . . . . Terminals . | . . . . . . . Fabricators . | . . . . . . . Repair Stations . | . . . . . . . Recycling Units . | . . . . . . . Scanalyzers . | . . . . . . . Garrison Access . | . . . . . . . Data Cores Recovered . | . . . . . . . Used . | . . . . . . . Hacking Detections 14 | . 3 . . . 4 7 Full Trace Events 2 | . . . . . 1 1 Feedback Events . | . . . . . . . Feedback Blocked . | . . . . . . . Robot Schematics Acquired . | . . . . . . . Robots Built . | . . . . . . . Authchips . | . . . . . . . Time . | . . . . . . . Total Robot Build Rating . | . . . . . . . Part Schematics Acquired 1 | . . . . . . 1 Parts Built 2 | . . . . . . 2 Authchips 1 | . . . . . . 1 Time 28 | . . . . . . 28 Total Part Build Rating 8 | . . . . . . 8 Parts Repaired 4 | . 1 . . . . 3 Time 126 | . 26 . . . . 100 Parts Recycled . | . . . . . . . Recycled Matter . | . . . . . . . Retrieved Matter . | . . . . . . . Retrieved Components . | . . . . . . . Parts Scanalyzed 1 | . . . . . . 1 Part Schematics Acquired 1 | . . . . . . 1 Parts Damaged . | . . . . . . . Bothacking | -11 -10 -10 -10 -9 -8 -7 ------------ Run | Scr Mat Min Exi Min Mat Fac Used RIF Installer . | . . . . . . . Robots Hacked 1 | . . . . . . 1 Non-combat 1 | . . . . . . 1 Combat . | . . . . . . . Robot Hacks Applied 2 | . . . . . . 2 no_distress 1 | . . . . . . 1 find_fabricator 1 | . . . . . . 1 Relay Couplers Released 1 | . . . . . . 1 Machine Destruction 1 | . . . . . . 1 Fabnet Peak Effective % . | . . . . . . . Robots Rewired . | . . . . . . . Allies Hacked . | . . . . . . . Hacks Repelled . | . . . . . . . Allies | -11 -10 -10 -10 -9 -8 -7 -------- Run | Scr Mat Min Exi Min Mat Fac Total Allies 2 | . . 2 . . . . Largest Group 2 | . . 2 2 . . . Highest-Rated Group 42 | . . 42 42 . . . Highest-Rated Ally 31 | . . 31 31 . . . Total Orders . | . . . . . . . Ally Attacks . | . . . . . . . Total Damage . | . . . . . . . Kills . | . . . . . . . Allies Corrupted . | . . . . . . . Allies Melted . | . . . . . . . Intel | -11 -10 -10 -10 -9 -8 -7 ------- Run | Scr Mat Min Exi Min Mat Fac Robot Analysis Total . | . . . . . . . Derelict Logs Recovered 1 | . . . . 1 . . Drone Launches . | . . . . . . . Drone Recoveries . | . . . . . . . Exploration | -11 -10 -10 -10 -9 -8 -7 ------------- Run | Scr Mat Min Exi Min Mat Fac Turns Passed 3487 | 91 384 226 362 216 759 1449 Spaces Moved 3740 | 53 385 494 928 234 598 1048 Core 38 | 1 . . . . 33 4 Treads 4 | . . . . . 4 . Legs 267 | . . . . . . 267 Wheels 865 | 52 238 . . . . 575 Hover . | . . . . . . . Flight 2566 | . 147 494 928 234 561 202 Fastest Speed 34 | 50 37 37 37 37 34 35 Average Speed 62 | 79 64 37 37 37 74 94 Slowest Speed 200 | 80 120 37 37 120 200 130 Overloaded Moves . | . . . . . . . Propulsion Burnouts . | . . . . . . . Robots Hopped 9 | . . 3 . 5 1 . Cave-ins Triggered . | . . . . . . . Exploration Rate (%) 52 | 3 70 78 95 52 44 28 Regions Visited 6 Branch Regions 3 Pre-discovered Areas 2 | . . . 1 1 . . Known Exits Taken . | . . . . . . . Unknown Exits Taken 6 | 1 1 1 1 1 1 . Scrap Searched 1 | . . 1 . . . . Spaces Dug . | . . . . . . . Terrain Destroyed . | . . . . . . . Melee . | . . . . . . . Projectile . | . . . . . . . AOE . | . . . . . . . Terrain Rammed . | . . . . . . . Walls Destroyed . | . . . . . . . Machines Disabled . | . . . . . . . Actions | -11 -10 -10 -10 -9 -8 -7 --------- Run | Scr Mat Min Exi Min Mat Fac Total 4625 | 78 490 528 946 332 805 1446 Wait 536 | . 60 32 17 78 100 249 Move 3716 | 52 384 487 927 223 595 1048 Hop 9 | . . 3 . 5 1 . Pick Up 56 | 8 10 1 1 2 15 19 Fast Attach 15 | . 2 . . 1 4 8 Attach 36 | 5 3 . . 1 12 15 Detach 2 | . . . . . . 2 Swap 15 | . 5 1 . 3 3 3 Drop 47 | . 8 1 1 4 15 18 Fire 158 | 13 18 3 . 14 60 50 Melee 2 | . . . . . . 2 Ram 32 | . . . . . . 32 Kick . | . . . . . . . Crush . | . . . . . . . Escape Stasis . | . . . . . . . Rewire . | . . . . . . . Trap 1 | . . . . 1 . . Miscellaneous . | . . . . . . . Route ------- -11/Scrapyard -10/Materials (discovered 2 exits: [*Mat] / [*Min]) -10/Mines (discovered 2 exits: [*Mat] / *Exi) -10/Exiles (discovered 2 exits: [*Min x2]) -9/Mines -8/Materials (discovered 3 exits: *Fac x2 / [*Sto]) -7/Factory (discovered 1 exit: [*Low]) History --------- Turn | Location | Event 12 | -11/Scrapyard | Discovered new exit (range 16) 92 | -11/Scrapyard | Entered Materials 272 | -10/Materials | Repaired Wheel 291 | -10/Materials | Discovered new exit (range 12) 310 | -10/Materials | Build established: Mutant 468 | -10/Materials | Discovered new exit (range 8) 476 | -10/Materials | Entered Mines 485 | -10/Mines | Assembled infested the area 490 | -10/Mines | Assisted by a Guerilla fighting off Assembled 557 | -10/Mines | Found a hidden stash of uninstalled traps 566 | -10/Mines | Discovered new exit (range 2) 669 | -10/Mines | Deemed a non-threat by the Exiles lab entrance 669 | -10/Mines | Discovered new exit (range 5) 700 | -10/Mines | Build established: Scavenger-Mutant 702 | -10/Mines | Entered Exiles 702 | -10/Exiles | Accompanied by 2 allies 708 | -10/Exiles | Discovered new exit (range 15) 721 | -10/Exiles | Met 8R-AWN 732 | -10/Exiles | Led the pair of lost Derelicts to a safe place 744 | -10/Exiles | Met EX-HEX 760 | -10/Exiles | Met EX-BIN 765 | -10/Exiles | Aligned with FarCom system 766 | -10/Exiles | Given EX-Vault access code 780 | -10/Exiles | Opened EX-Vault 783 | -10/Exiles | Found Prototype Device 786 | -10/Exiles | Identified Cloak of Protection 799 | -10/Exiles | Warned to stay clear of 0b10 Research branches 841 | -10/Exiles | Met EX-DEC 848 | -10/Exiles | Learned location of Zion (-6) 900 | -10/Exiles | Discovered new exit (range 15) 930 | -10/Exiles | Visited The Gauntlet 1064 | -10/Exiles | Left Exiles lab with Cloak of Protection 1064 | -10/Exiles | Entered Mines 1130 | -9/Mines | Received a Rocket Launcher from a helpful Derelict 1206 | -9/Mines | Discovered new exit (range 9) 1280 | -9/Mines | Entered Materials 1280 | -8/Materials | Evolved 4 slots: Power x1, Propulsion x2, Utility x1 1585 | -8/Materials | Lost 5 parts (2p3n) 1747 | -8/Materials | Discovered new exit (range 18) 1835 | -8/Materials | Discovered new exit (range 5) 1982 | -8/Materials | Discovered new exit (range 17) 2039 | -8/Materials | Entered Factory 2039 | -7/Factory | Evolved 2 slots: Utility x2 2075 | -7/Factory | Repaired Weight Redist. System 2115 | -7/Factory | Repaired Lgt. Nuclear Core 2279 | -7/Factory | Repaired Enh. Autogun 2424 | -7/Factory | Build established: Hacker-Mutant 3118 | -7/Factory | Fabricated Arm. Huge Wheel (x2) 3173 | -7/Factory | Discovered new exit (range 10) 3475 | -7/Factory | Core integrity fell below 50% 3482 | -7/Factory | Core integrity fell below 20% 3488 | -7/Factory | Destroyed by H-55 Commando with Assault Rifle Last Messages --------------- Slammed into Y-54 Guardian. Core Analyzer broken. Destabilizing: Short circuit. Slammed into Y-54 Guardian. Slammed into L-41 Fighter. Arm. Huge Wheel destroyed. Slammed into L-41 Fighter. Penetrated by Slug. System Shield destroyed. Slammed into L-41 Fighter. Destabilizing: System corrupted (+1). Arm. Huge Wheel destroyed. Slammed into L-41 Fighter. Critical hit (Burn: +37). Slammed into L-41 Fighter. Thermal Generator severed. Slug penetrates Door. Penetrated by Slug. Hacking Suite destroyed. Slammed into L-41 Fighter. Map ----- +----------------------------------------------------+ | | | | | | | | | | | | | | | | | | | | | | | #################????????????????????????????????? | | # #????????????????????????????????? | | + #????????????????????????????????? | | # #????????????????????????????????? | | # #????????????????????????????????? | | ##/########/##########???????????????????????????? | | +???????????????????????????? | | ######### #####????????????????????????????? | | #???????# ###############??##??????????????? | | + """gg + #? +??????????????? | | ### ! """?# ##### """ mlb # # """??????????? | | ????? ""??# #???# "G gh] ; " ????????????? | | ??????? ?# #???# """ g]]! #??????????????????? | | ??????????# #???# gb]l #??????????????????? | | ??????????# ????#= Yg@ #??????????????????? | | ??????????# ????###### ########??????????????????? | | ??????????#+?????????###?????????????????????????? | | ?????????????????????????????????????????????????? | | ?????????????????????????????????????????????????? | | ?????????????????????????????????????????????????? | | ?????????????????????????????????????????????????? | | ?????????????????????????????????????????????????? | | ?????????????????????????????????????????????????? | | ?????????????????????????????????????????????????? | | ?????????????????????????????????????????????????? | | ?????????????????????????????????????????????????? | | ?????????????????????????????????????????????????? | | ?????????????????????????????????????????????????? | | ?????????????????????????????????????????????????? | | ?????????????????????????????????????????????????? | | ?????????????????????????????????????????????????? | | ?????????????????????????????????????????????????? | | ?????????????????????????????????????????????????? | | ?????????????????????????????????????????????????? | | ?????????????????????????????????????????????????? | | ?????????????????????????????????????????????????? | | ?????????????????????????????????????????????????? | | ?????????????????????????????????????????????????? | | ?????????????????????????????????????????????????? | +----------------------------------------------------+ Best States ------------- Heat Dissipation 45 Energy Generation 23 Energy Capacity 325 Matter Stores 300 Matter Capacity 300 Sight Range 18 Robot Scan Range 14 Terrain Scan Range 16 Terrain Scan Density 10 Additional Mass Support 6 Armor Coverage 225 Evasion (%) 63 Core Analysis 6 Recoil Reduction 1 Offensive Hacking 20 Defensive Hacking 10 Authchip Count 1 Item Schematics ----------------- Arm. Huge Wheel | -7/Factory | Scanalyzed Robot Schematics ------------------ None Fabricated ------------ Arm. Huge Wheel | x2 | -7/Factory | Authchip Alien Tech Used ----------------- None Achievements -------------- None Challenges ------------ None Game ------ Seed FlyingShieldStorage Manual? 0 Play Time 01:13:46 Cumulative 32.0 hours Start 2022.06.09 @ 10:36:01 End 2022.06.09 @ 12:16:25 Sessions 1 Manual Loads 0 Difficulty Rogue Special Mode None Game No. 54 Rogue 54 Adventurer 0 Explorer 0 Win Type - Total 0 Types 0/0/0/0/0/0/0/0/0 Lore% 20 Gallery% 27 Achievement% 21 Wizard Run 0 Options --------- ASCII 0 Keyboard 0 Movement Mouse Keybinds 0 Fullscreen 1 Font 18/SmallcapsGlow Map View 76x50 Tactical HUD 0 Map Filters NONE Filters NONE Steam 1 RUN: 63753267-11bc-4fdf-a331-f4747a130c8e